bitfinex-derivatives/quotes_ETHF0:USTF0_20251203
["timestamp","ask_amount","ask_price","bid_price","bid_amount"]
[1764784328218,3.2078,3123.2,3123.1,1.4537]
[1764784328933,3.21060678,3123.2,3123.1,2.96563647]
[1764784329933,3.2078,3123.7,3123.6,2.9617]
[1764784330127,3.2078,3123.7,3123.5,0.8918]
[1764784330930,3.21120176,3123.7,3123.5,0.8918]
[1764784333233,3.21120176,3123.7,3123.6,2.9617]
[1764784334036,3.2078,3124.1,3124.0,3.8535]
[1764784335029,3.21148729,3124.1,3124.0,3.8535]
[1764784335731,0.00368729,3124.1,3124.0,3.8535]
[1764784336729,3.2078,3124.9,3124.5,3.8535]
[1764784336931,3.2078,3125.3,3124.5,3.8535]
[1764784337736,0.00826482,3124.6,3124.5,3.8535]
[1764784339638,3.2078,3125.3,3125.2,2.9617]
[1764784340240,6.228,3125.3,3125.0,0.8918]
[1764784340437,3.2078,3125.3,3125.2,2.9617]
[1764784340630,3.21148858,3125.3,3125.2,2.9617]
[1764784340837,4.64828858,3125.3,3125.2,1.4537]
[1764784341539,3.21148858,3125.3,3125.2,2.9617]
[1764784342042,4.64828858,3125.3,3125.2,2.9617]
[1764784342541,3.21148858,3125.3,3125.2,2.9617]
[1764784344347,0.00368858,3125.3,3125.2,2.9617]
[1764784344741,0.00480223,3125.6,3125.5,3.8535]
[1764784345143,3.02500223,3125.6,3125.5,2.3455]
[1764784345642,1.44160223,3125.6,3125.5,3.8535]
[1764784345945,0.00714939,3125.6,3125.5,3.85595399]
[1764784346745,1.4368,3126.1,3126.0,3.8535]
[1764784347633,1.44021504,3126.1,3126.0,3.8535]
[1764784348334,3.0202,3125.6,3125.5,0.00245399]
[1764784348638,6.228,3125.6,3125.5,0.00245399]
[1764784350445,3.0202,3125.6,3125.5,0.00245399]
[1764784351040,6.228,3125.6,3125.5,0.00245399]
[1764784351244,3.0202,3125.0,3124.9,0.00480223]
[1764784351547,3.0202,3125.0,3124.0,0.8918]
[1764784351548,3.0202,3124.3,3124.2,3.2078]
[1764784351740,3.0202,3124.1,3124.0,1.4537]
[1764784352044,3.0202,3123.8,3123.7,3.2078]
[1764784352244,3.02380767,3123.8,3123.7,3.21044587]
[1764784352945,3.02380767,3123.8,3123.7,0.00264587]
[1764784353444,3.02380767,3123.8,3123.7,1.45634587]
[1764784353445,1.44040767,3123.8,3123.7,1.45634587]
[1764784353649,1.44040767,3123.8,3123.7,2.93724587]
[1764784354150,2.92510767,3123.8,3123.7,0.00264587]
[1764784354949,2.92510767,3123.8,3123.7,1.52354587]
[1764784355248,0.00360767,3123.8,3123.7,3.00444587]
[1764784355449,2.98480767,3123.8,3123.7,1.52354587]
[1764784355744,2.98480767,3123.8,3123.7,0.00264587]
[1764784356250,0.00360767,3123.8,3123.7,3.00444587]
[1764784356450,1.50010767,3123.8,3123.7,1.52354587]
[1764784356749,2.98480767,3123.8,3123.7,1.52354587]
[1764784357156,1.50010767,3123.8,3123.7,1.52354587]
[1764784357355,1.50010767,3123.8,3123.7,3.00444587]
[1764784358457,1.50010767,3123.8,3123.7,6.21224587]
[1764784358656,0.00480223,3124.1,3124.0,3.8489]
[1764784358850,3.2078,3125.1,3124.0,3.8489]
[1764784359053,3.2078,3125.1,3124.5,0.8471]
[1764784359357,6.189,3125.1,3125.0,1.5209]
[1764784359544,3.2078,3125.1,3125.0,3.8489]
[1764784359851,0.002305,3125.1,3125.0,3.8489]
[1764784360752,0.00480223,3125.4,3125.3,2.9856]
[1764784360944,0.00480223,3125.4,3125.3,6.1934]
[1764784361547,0.00722744,3125.4,3125.3,6.1934]
[1764784366165,4.587,3126.5,3126.4,2.9092]
[1764784366459,4.587,3127.0,3126.9,1.4445]
[1764784366655,45.387,3127.0,3126.9,1.4445]
[1764784366859,4.587,3127.0,3126.9,1.4445]
[1764784367059,3.21130414,3127.0,3126.9,2.91316339]
[1764784367359,0.00317411,3127.3,3127.2,2.9092]
[1764784367565,0.00317411,3127.3,3127.2,6.117]
[1764784367957,3.2078,3128.2,3127.2,6.117]
[1764784368165,0.7281,3128.5,3128.0,3.2078]
[1764784368367,0.00237922,3128.5,3128.0,4.0543]
[1764784368567,1.3792,3128.1,3128.0,4.0543]
[1764784368869,2.7728,3128.1,3127.6,3.2078]
[1764784369066,0.00237922,3128.5,3128.4,2.9092]
[1764784369862,0.00237922,3128.5,3128.4,5.61243]
[1764784370370,3.2078,3129.8,3128.5,0.8465]
[1764784370670,3.2078,3129.8,3129.1,3.2078]
[1764784371471,0.00396116,3129.8,3129.7,6.117]
[1764784371668,3.2078,3130.3,3129.7,6.117]
[1764784372769,3.21111582,3130.3,3130.2,1.4445]
[1764784372974,3.21111582,3130.3,3129.3,3.2078]
[1764784372975,2.7728,3129.4,3129.3,3.2078]
[1764784373166,2.7728,3129.2,3129.1,0.00409006]
[1764784373362,0.15971,3130.0,3129.1,1.44859006]
[1764784373561,4.0731,3130.2,3129.3,3.2078]
[1764784373766,4.0731,3130.2,3129.7,3.2078]
[1764784374565,2.7728,3129.8,3129.7,3.2078]
[1764784374768,1.3936,3129.8,3129.2,3.2078]
[1764784374967,4.0731,3130.2,3129.2,6.117]
[1764784375974,3.2078,3130.2,3129.6,4.0543]
[1764784376173,1.3792,3130.2,3129.6,4.0543]
[1764784377069,0.00331582,3130.3,3130.1,1.4445]
[1764784377265,0.00331582,3130.3,3130.2,1.4445]
[1764784378177,1.38251582,3130.3,3130.0,3.2078]
[1764784378379,0.00331582,3130.3,3130.2,2.9092]
[1764784378971,1.38251582,3130.3,3130.2,1.4445]
[1764784379476,0.00331582,3130.3,3130.2,3.7557]
[1764784381570,2.77611582,3130.3,3130.2,3.7557]
[1764784381771,2.7728,3130.1,3130.0,3.2078]
[1764784382376,0.00331582,3130.3,3130.0,6.9635]
[1764784382567,0.00331582,3130.3,3130.2,1.4445]
[1764784382872,0.00331582,3130.3,3130.2,2.9092]
[1764784384074,3.2078,3131.4,3130.2,2.9092]
[1764784384372,40.8,3131.3,3130.4,5.9818]
[1764784384568,1.3065,3130.5,3130.4,1.36799417]
[1764784384765,3.2078,3130.9,3130.4,2.77879417]
[1764784384964,1.3065,3130.5,3130.4,5.98659417]
[1764784385175,2.7552,3130.5,3130.4,3.21259417]
[1764784385574,0.00306258,3130.9,3130.4,5.98659417]
[1764784386182,0.00306258,3130.9,3130.5,0.8082]
[1764784386679,0.00306258,3130.9,3130.8,5.9818]
[1764784386872,1.3065,3130.9,3130.8,5.9818]
[1764784387073,1.3065,3130.9,3130.8,4.571]
[1764784387482,1.3065,3130.9,3130.8,5.9818]
[1764784387682,41.6578,3131.5,3130.8,5.9818]
[1764784387873,41.66106258,3131.5,3130.8,5.9818]
[1764784388581,3.2078,3131.4,3130.8,2.774]
[1764784389284,2.7552,3130.9,3130.8,1.3632]
[1764784389581,2.7552,3130.7,3130.6,3.2078]
[1764784391579,1.3065,3130.7,3130.6,4.571]
[1764784391774,2.7552,3130.7,3130.6,4.571]
[1764784391984,2.7552,3130.7,3130.6,3.2078]
[1764784392178,2.7552,3130.5,3130.4,0.00479417]
[1764784395089,3.2078,3131.0,3130.9,2.774]
[1764784395287,0.15963,3131.7,3130.9,5.9818]
[1764784395288,44.01106258,3131.5,3130.9,5.9818]
[1764784395482,0.00326258,3131.5,3131.4,2.774]
[1764784395678,2.7552,3131.5,3131.4,0.00381788]
[1764784396386,3.62230298,3131.5,3131.4,0.00381788]
[1764784396588,6.83366488,3131.5,3131.4,0.00381788]
[1764784397086,6.83366488,3131.5,3131.4,1.788e-05]
[1764784397291,6.83366488,3131.5,3130.5,4.016]
[1764784397593,1.3065,3130.6,3130.5,4.571]
[1764784397780,40.8,3131.4,3130.5,5.3792]
[1764784397984,0.31719507,3131.3,3130.5,5.3792]
[1764784398189,0.31719507,3131.3,3130.5,5.3815363]
[1764784398390,1.3065,3130.6,3130.5,4.5733363]
[1764784398598,3.7617619,3131.5,3130.5,6.7923363]
[1764784398785,0.31757879,3131.4,3131.0,0.8082]
[1764784398980,0.31757879,3131.4,3130.9,3.2078]
[1764784398981,1.3065,3131.1,3130.9,3.2078]
[1764784399190,2.7552,3131.0,3130.9,3.2078]
[1764784399385,3.07302611,3131.0,3130.9,3.2078]
[1764784401295,3.07302611,3131.0,3130.5,4.0183363]
[1764784401486,3.9175919,3131.5,3130.5,5.3815363]
[1764784401487,1.3065,3130.6,3130.5,5.3815363]
[1764784401689,3.07302611,3130.6,3130.5,4.5733363]
[1764784401891,3.07302611,3130.6,3130.5,0.0023363]
[1764784402088,2.7552,3130.5,3130.1,3.2078]
[1764784402291,2.7552,3130.2,3130.1,3.2078]
[1764784402582,3.07302611,3130.2,3130.1,3.2078]
[1764784402789,2.7552,3129.8,3129.7,3.2078]
[1764784402992,3.07302611,3129.8,3129.7,3.2078]
[1764784403197,3.07302611,3129.8,3129.7,3.21193465]
[1764784403992,0.29003877,3129.8,3129.7,5.98593465]
[1764784404198,2.73829756,3131.0,3130.0,2.774]
[1764784404397,1.3065,3130.3,3130.2,3.2078]
[1764784404691,1.3065,3129.8,3129.7,3.21193465]
[1764784404890,3.2078,3130.4,3129.7,4.57513465]
[1764784405594,3.2078,3130.4,3130.3,1.3632]
[1764784405994,0.15968,3130.7,3130.3,1.3632]
[1764784406199,1.3065,3130.4,3130.3,1.3632]
[1764784406802,1.3065,3130.4,3130.1,3.2078]
[1764784407091,2.7552,3130.2,3129.7,3.21193465]
[1764784407400,2.7552,3129.8,3129.7,3.21193465]
[1764784409100,0.2012,3130.2,3129.7,4.57513465]
[1764784409398,17.78063756,3130.6,3129.7,4.57513465]
[1764784409399,3.2078,3130.6,3129.7,4.57513465]
[1764784409592,3.2078,3131.0,3130.5,5.9818]
[1764784411701,1.3065,3130.6,3130.5,4.571]
[1764784411897,1.3065,3130.6,3130.5,3.2078]
[1764784412097,2.7552,3130.6,3130.5,3.2078]
[1764784413597,5.963,3130.6,3129.9,3.2078]
[1764784414002,6.12268,3130.6,3129.9,3.2078]
[1764784414204,1.3065,3130.0,3129.9,3.2078]
[1764784414504,0.15969,3130.5,3129.9,3.2078]
[1764784415301,3.2078,3130.6,3130.5,1.2692]
[1764784415507,3.2078,3130.6,3130.5,2.6451]
[1764784416201,0.31529794,3130.6,3130.5,2.6451]
[1764784416407,0.31528495,3130.9,3130.3,3.2078]
[1764784416608,0.31528495,3130.8,3130.7,2.6451]
[1764784416804,3.2078,3131.0,3130.8,1.2692]
[1764784417003,0.31528041,3130.9,3130.8,1.2692]
[1764784417203,0.31528041,3130.9,3130.8,3.426]
[1764784417503,0.31528041,3130.9,3130.3,3.2078]
[1764784417504,2.91628041,3130.9,3130.3,3.2078]
[1764784417808,3.2078,3131.0,3130.9,1.2692]
[1764784418003,4.78090182,3131.0,3130.9,1.2692]
[1764784419525,3.52310182,3131.0,3130.9,2.4454]
[1764784419711,6.01750182,3131.0,3130.9,2.4454]
[1764784419912,6.01750182,3131.0,3130.5,0.7707]
[1764784420215,0.31530182,3130.9,3130.5,0.7707]
[1764784420421,1.234,3130.6,3130.5,1.1944]
[1764784420610,44.0078,3131.0,3130.5,1.1944]
[1764784420810,0.31537147,3130.9,3130.8,2.3706]
[1764784421119,0.31537147,3130.9,3130.8,5.5784]
[1764784421412,0.0035619,3131.5,3131.4,1.1944]
[1764784421624,0.0035619,3131.5,3131.4,5.5784]
[1764784428422,3.2078,3132.4,3132.3,2.3706]
[1764784428628,3.52239346,3132.4,3132.3,2.3706]
[1764784428819,6.01679346,3132.4,3131.5,0.7707]
[1764784429014,1.234,3132.1,3131.5,0.7707]
[1764784429325,3.2078,3132.4,3132.0,2.3706]
[1764784429520,1.23723662,3132.1,3132.0,3.1413]
[1764784429829,0.00323662,3132.1,3132.0,3.1413]
[1764784431318,2.49763662,3132.1,3132.0,1.1944]
[1764784431619,2.49763662,3132.1,3131.8,3.2078]
[1764784432223,0.02019048,3132.0,3131.9,2.3706]
[1764784432532,2.4944,3131.9,3131.5,0.77347567]
[1764784432722,0.03713757,3131.7,3131.6,2.3706]
[1764784433030,1.27113757,3131.7,3131.6,2.3706]
[1764784433327,1.28114566,3131.7,3131.6,2.3706]
[1764784433530,2.54154566,3131.7,3131.6,1.1944]
[1764784434029,1.28114566,3131.7,3131.6,2.3706]
[1764784434422,0.04714566,3131.7,3131.6,2.3706]
[1764784434729,1.234,3131.6,3131.5,1.19717567]
[1764784435232,0.04714566,3131.7,3131.6,2.3706]
[1764784435530,0.16284662,3132.1,3131.6,2.32345434]
[1764784436331,0.31427817,3132.0,3131.6,2.32345434]
[1764784436626,1.234,3131.7,3131.6,2.32345434]
[1764784436833,2.4944,3131.7,3131.6,1.14725434]
[1764784438035,1.234,3131.7,3131.6,2.32345434]
[1764784438329,1.39684662,3132.1,3132.0,2.3706]
[1764784438529,0.00323662,3132.1,3132.0,6.3491]
[1764784439130,0.02012088,3132.1,3132.0,6.3491]
[1764784439332,2.51452088,3132.1,3132.0,4.4022]
[1764784439534,0.02012088,3132.1,3132.0,5.5784]
[1764784439734,2.51452088,3132.1,3131.6,3.2078]
[1764784439931,1.25412088,3132.1,3132.0,1.1944]
[1764784440133,0.02012088,3132.1,3132.0,3.1413]
[1764784442938,0.02012088,3132.1,3132.0,6.3491]
[1764784444038,3.2078,3132.4,3132.3,2.4366]
[1764784444338,4.49587,3132.8,3132.7,1.1615]
[1764784444528,1.60273939,3132.8,3132.7,1.1615]
[1764784444730,6.04893939,3132.8,3132.7,1.1615]
[1764784445127,4.81393194,3132.8,3132.7,1.1615]
[1764784445332,6.05242587,3132.8,3132.7,1.1615]
[1764784445532,6.05242587,3132.8,3132.0,3.9785]
[1764784445734,5.73766255,3132.8,3132.0,3.9785]
[1764784447241,0.31482825,3132.7,3132.0,3.9785]
[1764784447937,2.68172825,3132.7,3132.6,1.1615]
[1764784448136,2.54420113,3133.8,3132.4,3.2078]
[1764784448137,3.2078,3133.3,3132.7,2.4366]
[1764784448346,1.44320401,3133.2,3133.1,2.4366]
[1764784448546,3.2078,3133.3,3133.2,2.4366]
[1764784448737,4.3363,3133.7,3133.6,1.1615]
[1764784449045,5.88946123,3133.7,3133.6,1.1615]
[1764784449233,5.57730277,3133.7,3133.0,0.6488]
[1764784449436,0.3146263,3133.6,3133.0,0.6488]
[1764784449639,1.4431263,3133.6,3133.5,1.1615]
[1764784449944,2.6815263,3133.6,3133.0,0.6488]
[1764784450144,0.3146263,3133.5,3133.0,0.6488]
[1764784450347,1.1285,3133.5,3133.4,1.1615]
[1764784450541,1.443142,3133.5,3133.4,1.1615]
[1764784450741,0.314642,3133.5,3133.4,2.4366]
[1764784450947,3.21040277,3133.7,3133.6,2.4366]
[1764784451139,0.00260277,3133.7,3133.6,2.4366]
[1764784451546,0.00260277,3133.7,3133.6,5.6444]
[1764784451934,0.31441755,3134.4,3134.0,0.6488]
[1764784451935,2.68131755,3134.4,3134.0,0.6488]
[1764784452245,1.1285,3134.1,3134.0,1.8103]
[1764784452434,1.1285,3134.1,3134.0,3.0854]
[1764784452637,40.8,3134.5,3134.0,3.0854]
[1764784452837,0.31414878,3134.4,3134.0,3.08813915]
[1764784453038,0.31414878,3134.4,3134.3,2.4366]
[1764784453244,0.00362419,3134.5,3134.4,2.4366]
[1764784455247,1.1285,3134.1,3134.0,3.21053915]
[1764784455445,2.3669,3134.1,3134.0,0.00273915]
[1764784455941,1.1285,3134.1,3134.0,0.00273915]
[1764784456149,1.1285,3134.1,3134.0,1.16423915]
[1764784456351,2.3669,3134.1,3134.0,0.00273915]
[1764784456751,2.5264,3134.1,3134.0,0.00273915]
[1764784457350,2.3669,3133.6,3133.5,0.6488]
[1764784457552,2.3669,3133.6,3132.7,0.00479417]
[1764784457553,2.3669,3133.3,3132.7,3.21259417]
[1764784457850,0.15954,3133.4,3132.7,3.21259417]
[1764784457851,40.8,3133.2,3132.7,3.21259417]
[1764784458054,1.1285,3132.8,3132.7,3.21259417]
[1764784458254,1.1285,3133.1,3132.7,3.21259417]
[1764784458456,2.3669,3132.8,3132.7,3.21609961]
[1764784459653,40.8,3133.1,3132.7,4.37759961]
[1764784459957,2.3669,3132.8,3132.7,0.00829961]
[1764784460150,40.8,3133.1,3132.7,2.44489961]
[1764784460357,40.8,3133.1,3132.7,0.00829961]
[1764784460656,40.8,3133.1,3133.0,1.1615]
[1764784460851,3.2078,3133.2,3133.1,2.4366]
[1764784461044,1.1285,3132.8,3132.7,4.37759961]
[1764784461249,3.2078,3133.2,3132.7,2.44489961]
[1764784461446,44.0078,3133.2,3133.1,2.4366]
[1764784462248,3.2078,3133.2,3133.1,2.4366]
[1764784462558,1.1285,3133.1,3133.0,0.6488]
[1764784462755,1.1285,3132.8,3132.7,1.16979961]
[1764784463755,2.3669,3132.2,3131.7,3.2078]
[1764784464154,0.15958,3132.7,3132.1,1.1615]
[1764784464354,0.3137642,3132.6,3132.1,1.1615]
[1764784464759,0.31776807,3132.6,3132.1,1.16477579]
[1764784465147,0.00400387,3132.6,3132.1,1.16477579]
[1764784465550,0.31783905,3132.6,3132.1,1.16477579]
[1764784466863,3.2078,3132.4,3132.1,1.16477579]
[1764784467063,1.1285,3132.2,3132.1,1.16477579]
[1764784467963,1.1285,3132.2,3132.1,0.00327579]
[1764784468162,2.3669,3132.2,3132.1,0.00327579]
[1764784468458,2.3669,3132.1,3132.0,0.00478622]
[1764784468857,43.1669,3132.1,3132.0,0.00478622]
[1764784469461,43.1669,3132.1,3132.0,0.00724173]
[1764784469759,3.2078,3132.4,3132.0,3.09264173]
[1764784470261,40.8,3132.3,3132.0,3.09264173]
[1764784470458,40.8,3132.3,3132.2,1.1615]
[1764784470658,2.3669,3132.1,3132.0,0.00724173]
[1764784470859,2.68088607,3132.1,3132.0,0.00724173]
[1764784471463,2.3669,3131.8,3131.7,3.2078]
[1764784472364,1.1285,3131.3,3131.2,3.2078]
[1764784472667,2.3669,3131.3,3131.2,3.21150529]
[1764784473354,40.95963,3131.6,3131.2,4.37300529]
[1764784473757,1.05,3131.3,3131.2,4.37300529]
[1764784473963,2.1816,3131.3,3131.2,3.21150529]
[1764784474564,0.15964,3131.5,3131.2,5.45940529]
[1764784474759,40.8,3131.6,3131.5,1.0818]
[1764784474963,40.8,3131.6,3131.5,2.2479]
[1764784475167,40.8,3131.6,3131.5,2.8775]
[1764784475862,3.36742,3131.9,3131.5,2.8775]
[1764784476066,3.36742,3131.9,3131.2,3.21150529]
[1764784476067,1.05,3131.3,3131.2,4.29330529]
[1764784476259,1.05,3131.3,3131.2,1.08550529]
[1764784476564,2.1816,3131.3,3131.2,0.00370529]
[1764784476868,2.34124,3131.3,3131.2,0.00370529]
[1764784478363,2.0211,3131.0,3130.9,0.00478622]
[1764784478666,5.2289,3131.0,3130.9,0.00478622]
[1764784479258,5.90746,3131.0,3130.9,0.00478622]
[1764784479458,5.90746,3131.0,3130.9,0.00841059]
[1764784479969,18.73946,3131.0,3130.9,0.00841059]
[1764784480470,1.9877,3130.4,3130.3,3.2078]
[1764784480768,40.8,3130.4,3130.3,5.2534]
[1764784481161,3.2078,3131.0,3130.3,5.2534]
[1764784481470,4.23324772,3131.0,3130.9,0.9817]
[1764784481978,4.23324772,3131.0,3130.9,2.0456]
[1764784482166,45.03324772,3131.0,3130.9,2.0456]
[1764784482368,45.03324772,3131.0,3130.9,0.9817]
[1764784482866,45.03324772,3131.0,3130.3,3.21579782]
[1764784482867,45.19290772,3131.0,3130.3,3.21579782]
[1764784483072,45.70340772,3131.0,3130.3,0.00799782]
[1764784483762,45.70340772,3131.0,3130.3,3.21579782]
[1764784484369,1.9877,3130.4,3130.3,4.19749782]
[1764784484565,1.9877,3130.4,3130.3,0.00799782]
[1764784485571,1.9877,3130.0,3129.9,3.2078]
[1764784485778,0.1597,3130.2,3130.1,0.9817]
[1764784485964,12.833,3130.7,3130.1,2.0456]
[1764784486574,0.15967,3130.8,3130.6,2.0456]
[1764784486775,0.15967,3130.8,3130.7,2.0456]
[1764784486971,3.21664772,3131.0,3130.9,2.0456]
[1764784487771,0.15967,3130.8,3130.1,0.00718703]
[1764784487974,0.15968,3130.7,3130.1,0.00718703]
[1764784488163,3.21664772,3131.0,3130.6,2.0456]
[1764784488366,1.0166,3130.7,3130.6,2.0456]
[1764784489269,3.21664772,3131.0,3130.6,2.0456]
[1764784489473,3.37630772,3131.0,3130.6,2.0456]
[1764784489671,1.0166,3130.7,3130.6,2.0456]
[1764784489872,0.15967,3130.9,3130.8,2.0456]
[1764784490175,2.14737,3130.9,3130.8,0.9817]
[1764784490668,2.14737,3130.9,3130.4,3.2078]
[1764784490869,2.14737,3130.9,3130.5,0.6228]
[1764784491267,0.15967,3130.9,3130.8,2.0456]
[1764784492074,3.2078,3131.4,3131.3,2.0456]
[1764784492373,3.2078,3132.2,3131.7,2.0456]
[1764784492574,1.0166,3131.8,3131.7,2.0456]
[1764784492778,1.0166,3131.8,3131.7,0.9817]
[1764784493181,1.01972927,3131.8,3131.7,0.9817]
[1764784493975,1.01972927,3131.8,3131.7,2.0456]
[1764784494380,1.33437412,3131.8,3131.7,2.0456]
[1764784495677,1.33437412,3131.8,3131.5,0.6228]
[1764784495678,2.30547412,3131.8,3131.5,0.6228]
[1764784495883,1.99082927,3131.8,3131.5,0.6228]
[1764784496380,0.00312927,3131.8,3131.7,2.0456]
[1764784496584,0.00478622,3132.1,3132.0,2.6684]
[1764784497593,0.00758663,3132.1,3132.0,2.6684]
[1764784499494,0.00758663,3132.1,3132.0,5.8762]
[1764784502394,3.36735,3133.1,3132.6,2.0456]
[1764784502600,4.38395,3133.1,3133.0,0.9817]
[1764784502896,1.0166,3132.6,3132.5,1.6045]
[1764784503090,1.0166,3132.6,3132.5,2.6684]
[1764784503594,0.00241277,3132.6,3132.5,2.67224998]
[1764784503895,1.99061277,3132.6,3132.5,0.98554998]
[1764784504191,1.99061277,3132.6,3132.5,0.00384998]
[1764784505298,1.99061277,3132.6,3132.5,0.93204998]
[1764784505599,0.95151277,3132.6,3132.5,1.99674998]
[1764784506197,1.99061277,3132.6,3132.5,0.00384998]
[1764784506392,1.99061277,3132.6,3132.5,0.93204998]
[1764784506592,0.95151277,3132.6,3132.5,2.56044998]
[1764784506791,0.00241277,3132.6,3132.5,2.56044998]
[1764784507398,1.99061277,3132.6,3132.5,1.49574998]
[1764784507702,0.00241277,3132.6,3132.5,2.56044998]
[1764784507992,0.95151277,3132.6,3132.5,2.56044998]
[1764784508299,0.00241277,3132.6,3132.5,2.56044998]
[1764784509398,1.277e-05,3132.6,3132.5,2.56044998]
[1764784511595,0.94911277,3132.6,3132.5,2.56044998]
[1764784511897,1.98821277,3132.6,3132.5,1.49574998]
[1764784512099,0.94911277,3132.6,3132.5,2.56044998]
[1764784512303,1.277e-05,3132.6,3132.5,1.63224998]
[1764784513307,1.277e-05,3132.6,3132.5,0.56754998]
[1764784514302,1.277e-05,3132.6,3132.5,1.63224998]
[1764784514505,0.94911277,3132.6,3132.5,1.63224998]
[1764784514697,1.99835655,3132.6,3132.5,0.93204998]
[1764784515000,2.00038113,3132.6,3132.5,0.00384998]
[1764784515397,2.00240571,3132.6,3132.5,0.00384998]
[1764784515903,2.00443029,3132.6,3132.5,0.00384998]
[1764784516599,2.00443029,3132.6,3132.5,1.99674998]
[1764784516903,2.00443029,3132.6,3132.5,0.00384998]
[1764784517502,2.16401029,3132.6,3132.5,0.00384998]
[1764784518201,2.49310399,3132.6,3132.4,3.2078]
[1764784518497,1.9882,3132.5,3132.4,0.9282]
[1764784518703,2.03212315,3132.5,3132.4,0.9282]
[1764784519203,0.04392315,3132.5,3132.4,1.9929]
[1764784519405,0.04392315,3132.5,3132.4,1.99610386]
[1764784519599,2.03212315,3132.5,3132.4,0.93140386]
[1764784520204,2.3465177,3132.5,3132.4,0.93140386]
[1764784522801,2.3465177,3132.5,3132.4,0.00320386]
[1764784523108,2.9252177,3132.5,3132.4,0.00320386]
[1764784523506,2.3465177,3132.5,3132.4,0.00320386]
[1764784523708,2.34703089,3132.5,3132.4,0.00320386]
[1764784524405,1.30793089,3132.5,3132.4,1.99610386]
[1764784524913,2.34703089,3132.5,3132.4,0.00320386]
[1764784525207,2.30310774,3132.5,3132.4,0.00320386]
[1764784525409,2.35871903,3132.5,3132.4,0.93140386]
[1764784525610,2.35871903,3132.5,3132.4,0.00320386]
[1764784526810,2.35871903,3132.5,3132.4,1.99610386]
[1764784529007,2.35871903,3132.5,3132.4,0.93140386]
[1764784529208,0.37051903,3132.5,3132.4,1.99610386]
[1764784530213,2.35871903,3132.5,3132.4,0.93140386]
[1764784530407,2.35871903,3132.5,3132.4,0.00320386]
[1764784530712,3.09699903,3132.5,3132.4,0.00320386]
[1764784531410,43.89699903,3132.5,3132.4,0.00320386]
[1764784532203,0.9491,3131.9,3131.8,5.2007]
[1764784532406,1.00471129,3131.9,3131.8,5.2007]
[1764784533211,2.04381129,3131.9,3131.8,5.20473622]
[1764784533402,0.37092233,3131.9,3131.8,5.05143622]
[1764784534316,0.05561129,3131.9,3131.8,5.05143622]
[1764784538010,1.09031129,3131.9,3131.8,5.05143622]
[1764784538228,2.08681129,3131.9,3131.8,5.09933622]
[1764784538416,0.05561129,3131.9,3131.8,5.09933622]
[1764784540719,2.33588451,3131.9,3131.8,4.14003622]
[1764784541312,2.33588451,3131.9,3131.8,5.09933622]
[1764784542216,0.05561129,3131.9,3131.8,5.09933622]
[1764784542420,17.99381277,3132.6,3132.5,2.5996]
[1764784542621,18.30916947,3132.6,3132.5,2.5996]
[1764784542919,59.10916947,3132.6,3132.5,2.5996]
[1764784543421,59.10916947,3132.6,3132.5,1.6403]
[1764784543615,1.965,3132.3,3132.2,5.1864]
[1764784543816,1.2838567,3132.3,3132.2,5.1864]
[1764784544114,56.82881277,3132.6,3132.2,5.1864]
[1764784544422,2.2804451,3132.5,3132.4,1.9786]
[1764784544719,2.2804451,3132.5,3132.4,1.0193]
[1764784545519,2.2804451,3132.5,3132.4,1.9786]
[1764784545820,2.2804451,3132.5,3132.4,1.0193]
[1764784546217,2.2804451,3132.5,3132.4,1.9786]
[1764784546421,0.3154451,3132.5,3132.4,1.9786]
[1764784547117,1.2839451,3132.5,3132.4,1.9786]
[1764784547817,2.2804451,3132.5,3132.2,3.2078]
[1764784548014,1.965,3132.0,3131.9,1.9786]
[1764784548521,0.01665373,3132.0,3131.9,1.9786]
[1764784548723,2.1246,3132.3,3132.2,0.98600383]
[1764784549026,2.12461,3131.9,3131.8,3.21183622]
[1764784549218,0.32621195,3131.9,3131.8,5.19043622]
[1764784549616,0.01061739,3131.9,3131.8,6.03184885]
[1764784550123,1.97561739,3131.9,3131.8,5.19043622]
[1764784550525,2.2911829,3131.9,3131.8,3.21183622]
[1764784551423,1.965,3131.1,3131.0,1.6421]
[1764784551721,1.965,3130.9,3130.8,1.9786]
[1764784551927,1.965,3130.9,3130.6,4.04921263]
[1764784551928,1.965,3130.7,3130.6,6.02781263]
[1764784552121,1.965,3130.7,3130.6,5.1864]
[1764784552426,1.97561739,3130.7,3130.6,4.23088981]
[1764784552623,1.97561739,3130.7,3130.6,5.19018981]
[1764784552822,1.97561739,3130.7,3130.6,4.23088981]
[1764784553025,1.97561739,3130.7,3130.6,5.19018981]
[1764784553726,1.97561739,3130.7,3130.6,4.23088981]
[1764784554025,0.01061739,3130.7,3130.6,5.19018981]
[1764784555018,40.8,3131.5,3130.9,1.9786]
[1764784555224,40.8,3131.5,3130.6,9.21158981]
[1764784555225,40.8,3131.5,3131.4,1.9786]
[1764784555722,41.11473524,3131.5,3131.4,1.9786]
[1764784557326,40.8,3131.5,3131.4,1.9786]
[1764784558018,0.9685,3131.6,3131.5,2.5996]
[1764784559129,40.80478622,3131.8,3131.7,1.9786]
[1764784559322,41.11945862,3131.8,3131.7,1.9786]
[1764784560426,40.80478622,3131.8,3131.7,1.9786]
[1764784560924,0.00478622,3131.8,3131.7,1.9786]
[1764784561227,0.319471,3131.8,3131.2,5.1864]
[1764784562326,0.319471,3131.8,3130.6,3.79178981]
[1764784562327,2.12468,3130.7,3130.6,0.00378981]
[1764784562522,2.12468,3130.7,3130.0,3.8288]
[1764784562523,2.12469,3130.4,3130.0,3.2078]
[1764784562821,2.43937478,3130.4,3130.0,3.2078]
[1764784563021,43.23937478,3130.4,3130.0,3.2078]
[1764784563219,41.11468478,3130.4,3130.3,2.01118622]
[1764784563418,14.8083,3130.7,3130.6,1.8759]
[1764784563619,0.9531,3130.4,3130.3,0.89746673]
[1764784563819,1.9913,3130.4,3130.3,0.89746673]
[1764784564021,1.9913,3130.4,3130.3,1.88456673]
[1764784564328,40.80288216,3130.7,3130.3,1.88456673]
[1764784564727,0.9531,3130.4,3130.3,1.88456673]